[Event "Early-Titled-Tuesday-Blitz-September-05-2023"]
[Site "Chess.com"]
[Date "2023.09.05"]
[Round "8"]
[White "JoliyRoger"]
[Black "Iunusovnuriddin"]
[Result "0-1"]
[WhiteElo "2472"]
[BlackElo "2343"]
[TimeControl "180+1"]
[EndTime "9:27:22 PDT"]
[Termination "Iunusovnuriddin won on time"]

1. d4 {[%clk 0:03:00.9]} 1... Nf6 {[%clk 0:02:58.4]} 2. c4 {[%clk 0:03:00.6]}
2... g6 {[%clk 0:02:57.5]} 3. Nc3 {[%clk 0:03:00.9]} 3... Bg7 {[%clk 0:02:55.4]}
4. e4 {[%clk 0:03:01]} 4... d6 {[%clk 0:02:55.2]} 5. Nf3 {[%clk 0:03:01.6]} 5...
O-O {[%clk 0:02:54.9]} 6. h3 {[%clk 0:03:01.1]} 6... e5 {[%clk 0:02:53.1]} 7. d5
{[%clk 0:03:01.1]} 7... Nbd7 {[%clk 0:02:50.4]} 8. Bg5 {[%clk 0:03:01.1]} 8...
h6 {[%clk 0:02:49.7]} 9. Be3 {[%clk 0:03:01.3]} 9... Nc5 {[%clk 0:02:49.8]} 10.
Nd2 {[%clk 0:03:01.3]} 10... a5 {[%clk 0:02:48.5]} 11. g4 {[%clk 0:03:01.5]}
11... h5 {[%clk 0:02:41.5]} 12. Be2 {[%clk 0:03:01]} 12... hxg4 {[%clk
0:02:22.4]} 13. hxg4 {[%clk 0:03:01.9]} 13... Nh7 {[%clk 0:02:22.8]} 14. g5
{[%clk 0:02:50.1]} 14... Nxg5 {[%clk 0:02:20.8]} 15. Qc2 {[%clk 0:02:39.1]}
15... Nh3 {[%clk 0:02:14.9]} 16. O-O-O {[%clk 0:02:36.3]} 16... a4 {[%clk
0:02:11.2]} 17. Rh2 {[%clk 0:02:27.5]} 17... a3 {[%clk 0:02:08]} 18. b3 {[%clk
0:02:15.8]} 18... Nf4 {[%clk 0:02:06.8]} 19. Rdh1 {[%clk 0:02:11.4]} 19... Rb8
{[%clk 0:01:49.5]} 20. Bf1 {[%clk 0:02:10.3]} 20... c6 {[%clk 0:01:44.1]} 21. f3
{[%clk 0:01:53.8]} 21... cxd5 {[%clk 0:01:43]} 22. cxd5 {[%clk 0:01:52.3]} 22...
Qa5 {[%clk 0:01:03.2]} 23. Nc4 {[%clk 0:01:49.8]} 23... Qc7 {[%clk 0:01:02]} 24.
Nxa3 {[%clk 0:01:48.8]} 24... Bd7 {[%clk 0:00:58]} 25. Bb5 {[%clk 0:01:48.6]}
25... Rfc8 {[%clk 0:00:55.8]} 26. Kb1 {[%clk 0:01:20.3]} 26... Qa5 {[%clk
0:00:50.7]} 27. Nc4 {[%clk 0:01:15.3]} 27... Qc7 {[%clk 0:00:31.7]} 28. a4
{[%clk 0:01:11.1]} 28... Na6 {[%clk 0:00:21.1]} 29. Bb6 {[%clk 0:00:56.4]} 29...
Bxb5 {[%clk 0:00:14.3]} 30. Bxc7 {[%clk 0:00:53.8]} 30... Bxc4 {[%clk
0:00:14.8]} 31. Bxb8 {[%clk 0:00:52.5]} 31... Bd3 {[%clk 0:00:14.4]} 32. Bxd6
{[%clk 0:00:43.4]} 32... Rxc3 {[%clk 0:00:13.2]} 33. Qxd3 {[%clk 0:00:39.7]}
33... Nxd3 {[%clk 0:00:14.1]} 34. Ka2 {[%clk 0:00:29.7]} 34... Nab4+ {[%clk
0:00:12.1]} 35. Ka3 {[%clk 0:00:21.1]} 35... Nc2+ {[%clk 0:00:11.1]} 36. Ka2
{[%clk 0:00:20.7]} 36... Nd4 {[%clk 0:00:11.4]} 37. Rb1 {[%clk 0:00:11.8]} 37...
Nxf3 {[%clk 0:00:10.5]} 38. Rg2 {[%clk 0:00:06.5]} 38... Nd4 {[%clk 0:00:10.7]}
39. Ba3 {[%clk 0:00:06]} 39... Bf8 {[%clk 0:00:08.9]} 40. Bxf8 {[%clk
0:00:04.7]} 40... Kxf8 {[%clk 0:00:09.6]} 41. Ka3 {[%clk 0:00:04.9]} 41... f5
{[%clk 0:00:08.5]} 42. Rxg6 {[%clk 0:00:03.2]} 42... fxe4 {[%clk 0:00:08.4]} 43.
Rf1+ {[%clk 0:00:02.1]} 43... Nf4 {[%clk 0:00:07.8]} 0-1

[Event "Early-Titled-Tuesday-Blitz-September-05-2023"]
[Site "Chess.com"]
[Date "2023.09.05"]
[Round "8"]
[White "LUISMIGUELOV"]
[Black "effefe"]
[Result "0-1"]
[WhiteElo "2081"]
[BlackElo "2351"]
[TimeControl "180+1"]
[EndTime "9:27:24 PDT"]
[Termination "effefe won on time"]

1. d4 {[%clk 0:03:00.9]} 1... Nf6 {[%clk 0:02:57.1]} 2. c3 {[%clk 0:02:59]} 2...
g6 {[%clk 0:02:57.1]} 3. Bg5 {[%clk 0:02:58.7]} 3... Bg7 {[%clk 0:02:56.6]} 4.
Nd2 {[%clk 0:02:56.8]} 4... O-O {[%clk 0:02:56.7]} 5. e4 {[%clk 0:02:56.8]} 5...
d6 {[%clk 0:02:57]} 6. f4 {[%clk 0:02:54.4]} 6... h6 {[%clk 0:02:54.1]} 7. Bxf6
{[%clk 0:02:52.6]} 7... Bxf6 {[%clk 0:02:46.9]} 8. e5 {[%clk 0:02:52.4]} 8...
dxe5 {[%clk 0:02:44.8]} 9. fxe5 {[%clk 0:02:51.8]} 9... Bg7 {[%clk 0:02:45.4]}
10. Ngf3 {[%clk 0:02:51.3]} 10... c5 {[%clk 0:02:39.2]} 11. Bc4 {[%clk
0:02:46.2]} 11... Nc6 {[%clk 0:02:37]} 12. d5 {[%clk 0:02:17.5]} 12... Nxe5
{[%clk 0:02:34.1]} 13. Nxe5 {[%clk 0:02:18]} 13... Bxe5 {[%clk 0:02:35]} 14. O-O
{[%clk 0:02:17.7]} 14... Bg7 {[%clk 0:02:34.2]} 15. Ne4 {[%clk 0:02:04.9]} 15...
b6 {[%clk 0:02:13.3]} 16. d6 {[%clk 0:02:00.2]} 16... Bb7 {[%clk 0:02:06.7]} 17.
Qg4 {[%clk 0:01:45.8]} 17... Bxe4 {[%clk 0:01:50.6]} 18. Qxe4 {[%clk 0:01:41.2]}
18... Qxd6 {[%clk 0:01:49.2]} 19. Rad1 {[%clk 0:01:39.1]} 19... Qe5 {[%clk
0:01:34.7]} 20. Qxg6 {[%clk 0:01:35.2]} 20... e6 {[%clk 0:01:24.4]} 21. Rxf7
{[%clk 0:01:17.7]} 21... Rxf7 {[%clk 0:01:15.6]} 22. Bxe6 {[%clk 0:01:17.4]}
22... Qf6 {[%clk 0:00:56.4]} 23. Bxf7+ {[%clk 0:01:10.7]} 23... Qxf7 {[%clk
0:00:56]} 24. Qc6 {[%clk 0:01:06]} 24... Rf8 {[%clk 0:00:54.1]} 25. h3 {[%clk
0:01:05.6]} 25... Qf2+ {[%clk 0:00:52.8]} 26. Kh1 {[%clk 0:01:05.7]} 26... Qg3
{[%clk 0:00:41.8]} 27. Qe6+ {[%clk 0:01:02.4]} 27... Kh8 {[%clk 0:00:40]} 28.
Re1 {[%clk 0:00:42.3]} 28... Rf2 {[%clk 0:00:21.3]} 29. Qe8+ {[%clk 0:00:41.3]}
29... Kh7 {[%clk 0:00:21.4]} 30. Qe4+ {[%clk 0:00:39.6]} 30... Qg6 {[%clk
0:00:22]} 31. b4 {[%clk 0:00:21.7]} 31... cxb4 {[%clk 0:00:14.3]} 32. cxb4
{[%clk 0:00:20.3]} 32... Qxe4 {[%clk 0:00:13.6]} 33. Rxe4 {[%clk 0:00:19.6]}
33... Rxa2 {[%clk 0:00:13.9]} 34. g4 {[%clk 0:00:18.1]} 34... a5 {[%clk
0:00:12.6]} 35. bxa5 {[%clk 0:00:17.4]} 35... bxa5 {[%clk 0:00:13.2]} 36. h4
{[%clk 0:00:17.8]} 36... a4 {[%clk 0:00:12.9]} 37. Kg1 {[%clk 0:00:16.9]} 37...
a3 {[%clk 0:00:12.2]} 38. Kf1 {[%clk 0:00:16.5]} 38... Ra1+ {[%clk 0:00:12.1]}
39. Kg2 {[%clk 0:00:13.7]} 39... a2 {[%clk 0:00:12.6]} 40. Ra4 {[%clk
0:00:13.6]} 40... Kg6 {[%clk 0:00:08.4]} 41. Ra6+ {[%clk 0:00:12.8]} 41... Bf6
{[%clk 0:00:06.1]} 42. Kh2 {[%clk 0:00:08.9]} 42... Kf7 {[%clk 0:00:05.6]} 43.
g5 {[%clk 0:00:07.5]} 43... hxg5 {[%clk 0:00:05.5]} 44. hxg5 {[%clk 0:00:07.7]}
44... Bxg5 {[%clk 0:00:06]} 45. Kg2 {[%clk 0:00:07.8]} 45... Ke7 {[%clk
0:00:03.3]} 46. Ra7+ {[%clk 0:00:07.2]} 46... Kd6 {[%clk 0:00:03.5]} 47. Ra6+
{[%clk 0:00:06.8]} 47... Kc7 {[%clk 0:00:02.8]} 48. Ra7+ {[%clk 0:00:06.3]}
48... Kb6 {[%clk 0:00:03.5]} 49. Ra4 {[%clk 0:00:06.1]} 49... Be7 {[%clk
0:00:03.1]} 50. Ra8 {[%clk 0:00:05]} 50... Kb5 {[%clk 0:00:03]} 51. Rb8+ {[%clk
0:00:04.4]} 51... Kc4 {[%clk 0:00:03.5]} 52. Rc8+ {[%clk 0:00:04.1]} 52... Kb3
{[%clk 0:00:03.9]} 53. Rb8+ {[%clk 0:00:04]} 53... Bb4 {[%clk 0:00:04.7]} 54.
Ra8 {[%clk 0:00:01.6]} 54... Kb2 {[%clk 0:00:04.8]} 0-1

[Event "Early-Titled-Tuesday-Blitz-September-05-2023"]
[Site "Chess.com"]
[Date "2023.09.05"]
[Round "8"]
[White "Witty_Alien"]
[Black "Gyulamiryan-koryun"]
[Result "1-0"]
[WhiteElo "2170"]
[BlackElo "2046"]
[TimeControl "180+1"]
[EndTime "9:27:26 PDT"]
[Termination "Witty_Alien won by checkmate"]

1. e4 {[%clk 0:03:00.9]} 1... e5 {[%clk 0:02:58.1]} 2. d4 {[%clk 0:03:00.1]}
2... exd4 {[%clk 0:02:57.2]} 3. Nf3 {[%clk 0:03:00.3]} 3... Nc6 {[%clk
0:02:57.2]} 4. Nxd4 {[%clk 0:03:00.6]} 4... Bc5 {[%clk 0:02:57.2]} 5. Nxc6
{[%clk 0:03:00.6]} 5... Qf6 {[%clk 0:02:57.3]} 6. Qd2 {[%clk 0:03:01.1]} 6...
dxc6 {[%clk 0:02:56.7]} 7. Nc3 {[%clk 0:02:59.8]} 7... Be6 {[%clk 0:02:48.7]} 8.
Na4 {[%clk 0:02:59.6]} 8... Bd6 {[%clk 0:02:28.4]} 9. Bd3 {[%clk 0:02:52.6]}
9... O-O-O {[%clk 0:02:26.8]} 10. Qa5 {[%clk 0:02:46.9]} 10... Qd4 {[%clk
0:02:18.6]} 11. Bd2 {[%clk 0:02:00.5]} 11... a6 {[%clk 0:01:55.1]} 12. Bc3
{[%clk 0:01:08.1]} 12... Qa7 {[%clk 0:01:27.7]} 13. O-O {[%clk 0:00:51.1]} 13...
f6 {[%clk 0:01:12.4]} 14. b4 {[%clk 0:00:45.2]} 14... c5 {[%clk 0:01:07.7]} 15.
bxc5 {[%clk 0:00:39.7]} 15... Be5 {[%clk 0:01:01.6]} 16. c6 {[%clk 0:00:14.1]}
16... b5 {[%clk 0:00:25]} 17. Rab1 {[%clk 0:00:11.4]} 17... Bxc3 {[%clk
0:00:23.9]} 18. Nxc3 {[%clk 0:00:11]} 18... Bc4 {[%clk 0:00:21]} 19. Bxc4 {[%clk
0:00:07.5]} 19... bxc4 {[%clk 0:00:21.9]} 20. Nb5 {[%clk 0:00:05.4]} 20... Qb6
{[%clk 0:00:20.7]} 21. Qa4 {[%clk 0:00:01.3]} 21... axb5 {[%clk 0:00:17.9]} 22.
Rxb5 {[%clk 0:00:02.2]} 22... Qxc6 {[%clk 0:00:16.6]} 23. Rb8+ {[%clk
0:00:02.8]} 23... Kxb8 {[%clk 0:00:11.5]} 24. Qxc6 {[%clk 0:00:03.1]} 24... Ne7
{[%clk 0:00:11.8]} 25. Rb1+ {[%clk 0:00:03.3]} 25... Kc8 {[%clk 0:00:12.3]} 26.
Qa8+ {[%clk 0:00:02.3]} 26... Kd7 {[%clk 0:00:12.5]} 27. Rd1+ {[%clk 0:00:03]}
27... Nd5 {[%clk 0:00:02.6]} 28. Rxd5+ {[%clk 0:00:03.4]} 28... Ke7 {[%clk
0:00:03.3]} 29. Qc6 {[%clk 0:00:02.9]} 29... Rxd5 {[%clk 0:00:02.7]} 30. exd5
{[%clk 0:00:02.9]} 30... Rd8 {[%clk 0:00:03.4]} 31. Qxc7+ {[%clk 0:00:03.3]}
31... Rd7 {[%clk 0:00:04.3]} 32. Qxd7+ {[%clk 0:00:03.2]} 32... Kxd7 {[%clk
0:00:04.5]} 33. Kf1 {[%clk 0:00:03.3]} 33... Kd6 {[%clk 0:00:05.4]} 34. Ke2
{[%clk 0:00:03.6]} 34... Kxd5 {[%clk 0:00:06.3]} 35. Ke3 {[%clk 0:00:04.2]}
35... Kc5 {[%clk 0:00:06.4]} 36. Ke4 {[%clk 0:00:03.7]} 36... Kb4 {[%clk
0:00:07]} 37. Kd4 {[%clk 0:00:04.3]} 37... g5 {[%clk 0:00:05.2]} 38. a4 {[%clk
0:00:04.5]} 38... f5 {[%clk 0:00:04]} 39. a5 {[%clk 0:00:04]} 39... Kxa5 {[%clk
0:00:04.7]} 40. Kxc4 {[%clk 0:00:04.1]} 40... Kb6 {[%clk 0:00:04.2]} 41. Kd5
{[%clk 0:00:05]} 41... f4 {[%clk 0:00:03.8]} 42. Ke5 {[%clk 0:00:05.9]} 42...
Kc5 {[%clk 0:00:04.1]} 43. Kf5 {[%clk 0:00:05.6]} 43... h6 {[%clk 0:00:04.4]}
44. Kg6 {[%clk 0:00:05.3]} 44... Kc4 {[%clk 0:00:05.1]} 45. Kxh6 {[%clk
0:00:05]} 45... Kc3 {[%clk 0:00:06]} 46. Kxg5 {[%clk 0:00:05.3]} 46... Kxc2
{[%clk 0:00:06.9]} 47. Kxf4 {[%clk 0:00:05.8]} 47... Kd2 {[%clk 0:00:07.8]} 48.
g4 {[%clk 0:00:06.5]} 48... Ke2 {[%clk 0:00:08.7]} 49. h4 {[%clk 0:00:07.4]}
49... Kxf2 {[%clk 0:00:09.6]} 50. g5 {[%clk 0:00:08.3]} 50... Kg2 {[%clk
0:00:10.5]} 51. h5 {[%clk 0:00:09.2]} 51... Kh2 {[%clk 0:00:11.4]} 52. Kf5
{[%clk 0:00:10.1]} 52... Kg2 {[%clk 0:00:12.3]} 53. g6 {[%clk 0:00:11]} 53...
Kf2 {[%clk 0:00:13.2]} 54. h6 {[%clk 0:00:11.9]} 54... Ke2 {[%clk 0:00:14.1]}
55. Kf6 {[%clk 0:00:12.8]} 55... Ke3 {[%clk 0:00:15]} 56. g7 {[%clk 0:00:13.7]}
56... Kd2 {[%clk 0:00:15.9]} 57. h7 {[%clk 0:00:14.6]} 57... Kd3 {[%clk
0:00:16.8]} 58. Kf7 {[%clk 0:00:15.5]} 58... Ke3 {[%clk 0:00:17.7]} 59. g8=Q
{[%clk 0:00:16.4]} 59... Ke2 {[%clk 0:00:18.6]} 60. h8=Q {[%clk 0:00:17.3]}
60... Kd2 {[%clk 0:00:19.5]} 61. Qhh7 {[%clk 0:00:18.2]} 61... Ke2 {[%clk
0:00:19.8]} 62. Qgg6 {[%clk 0:00:19.1]} 62... Ke3 {[%clk 0:00:19.8]} 63. Qhh5
{[%clk 0:00:20]} 63... Kf2 {[%clk 0:00:20.1]} 64. Qgg4 {[%clk 0:00:20.9]} 64...
Kf1 {[%clk 0:00:20.2]} 65. Qhh3+ {[%clk 0:00:21.8]} 65... Kf2 {[%clk 0:00:19.8]}
66. Qgg2+ {[%clk 0:00:22.3]} 66... Ke1 {[%clk 0:00:20.7]} 67. Qhh1# {[%clk
0:00:23.2]} 1-0

[Event "Early-Titled-Tuesday-Blitz-September-05-2023"]
[Site "Chess.com"]
[Date "2023.09.05"]
[Round "8"]
[White "Zurability"]
[Black "CrushingKings"]
[Result "0-1"]
[WhiteElo "2699"]
[BlackElo "2563"]
[TimeControl "180+1"]
[EndTime "9:27:31 PDT"]
[Termination "CrushingKings won on time"]

1. Nf3 {[%clk 0:03:00.9]} 1... g6 {[%clk 0:03:00.9]} 2. d4 {[%clk 0:02:57.2]}
2... Bg7 {[%clk 0:03:01.8]} 3. g3 {[%clk 0:02:55.9]} 3... Nf6 {[%clk 0:03:01.7]}
4. Bg2 {[%clk 0:02:56.6]} 4... O-O {[%clk 0:03:02.4]} 5. O-O {[%clk 0:02:57.1]}
5... d6 {[%clk 0:03:03.3]} 6. Nc3 {[%clk 0:02:53.1]} 6... Nbd7 {[%clk
0:03:03.6]} 7. e4 {[%clk 0:02:53.5]} 7... c5 {[%clk 0:02:57.9]} 8. h3 {[%clk
0:02:48.6]} 8... cxd4 {[%clk 0:02:57.4]} 9. Nxd4 {[%clk 0:02:49.5]} 9... Nc5
{[%clk 0:02:57.7]} 10. Re1 {[%clk 0:02:48]} 10... Ne6 {[%clk 0:02:52.6]} 11. Nb3
{[%clk 0:02:42.5]} 11... Rb8 {[%clk 0:02:39.6]} 12. Be3 {[%clk 0:02:40.8]} 12...
b6 {[%clk 0:02:35]} 13. a4 {[%clk 0:02:40.8]} 13... Bb7 {[%clk 0:02:34.9]} 14.
a5 {[%clk 0:02:36.4]} 14... Nc5 {[%clk 0:02:34.6]} 15. axb6 {[%clk 0:02:15.7]}
15... axb6 {[%clk 0:02:33.2]} 16. Nd2 {[%clk 0:02:04.1]} 16... Nfd7 {[%clk
0:01:25.2]} 17. Ra2 {[%clk 0:01:51.2]} 17... Bc6 {[%clk 0:01:13.9]} 18. Nd5
{[%clk 0:01:46.9]} 18... b5 {[%clk 0:01:02.3]} 19. Nb4 {[%clk 0:01:30.2]} 19...
Bb7 {[%clk 0:00:58.7]} 20. c3 {[%clk 0:01:30.3]} 20... Ne5 {[%clk 0:00:55.6]}
21. Bd4 {[%clk 0:01:22.5]} 21... Ncd3 {[%clk 0:00:48.2]} 22. Nxd3 {[%clk
0:01:20.5]} 22... Nxd3 {[%clk 0:00:47.4]} 23. Re3 {[%clk 0:01:19.6]} 23... Ne5
{[%clk 0:00:20.5]} 24. f4 {[%clk 0:00:55.1]} 24... Nc6 {[%clk 0:00:20.7]} 25.
Bxg7 {[%clk 0:00:51.4]} 25... Kxg7 {[%clk 0:00:21.6]} 26. Kh2 {[%clk 0:00:51.5]}
26... Qb6 {[%clk 0:00:22.2]} 27. Rd3 {[%clk 0:00:39]} 27... b4 {[%clk
0:00:22.4]} 28. c4 {[%clk 0:00:39.4]} 28... Rfc8 {[%clk 0:00:15.9]} 29. b3
{[%clk 0:00:39.1]} 29... Nd8 {[%clk 0:00:12.2]} 30. Nf1 {[%clk 0:00:35.6]} 30...
Ne6 {[%clk 0:00:12.6]} 31. Ne3 {[%clk 0:00:19.3]} 31... Nc5 {[%clk 0:00:13.2]}
32. Nd5 {[%clk 0:00:19.5]} 32... Qd8 {[%clk 0:00:13.9]} 33. Re3 {[%clk
0:00:18.2]} 33... e6 {[%clk 0:00:14.1]} 34. Qd4+ {[%clk 0:00:12.1]} 34... f6
{[%clk 0:00:12.7]} 35. Nxb4 {[%clk 0:00:10.7]} 35... Bxe4 {[%clk 0:00:12.8]} 36.
Ra7+ {[%clk 0:00:08.4]} 36... Rc7 {[%clk 0:00:08]} 37. Rxc7+ {[%clk 0:00:05.3]}
37... Qxc7 {[%clk 0:00:08.9]} 38. Bxe4 {[%clk 0:00:04.6]} 38... Rxb4 {[%clk
0:00:09.2]} 39. Bg2 {[%clk 0:00:05.2]} 39... Rxb3 {[%clk 0:00:07.3]} 40. Rxb3
{[%clk 0:00:04.8]} 40... Nxb3 {[%clk 0:00:08.2]} 41. Qe3 {[%clk 0:00:04.8]}
41... Nc5 {[%clk 0:00:09.1]} 42. g4 {[%clk 0:00:04.5]} 42... h6 {[%clk
0:00:06.4]} 43. h4 {[%clk 0:00:04.1]} 43... Qe7 {[%clk 0:00:06.6]} 44. g5 {[%clk
0:00:04.2]} 44... hxg5 {[%clk 0:00:07]} 45. hxg5 {[%clk 0:00:05.1]} 45... e5
{[%clk 0:00:07.6]} 46. Qf3 {[%clk 0:00:01.3]} 46... exf4 {[%clk 0:00:07.6]} 47.
Qxf4 {[%clk 0:00:02.1]} 47... fxg5 {[%clk 0:00:08]} 48. Qf2 {[%clk 0:00:02.8]}
48... Qe5+ {[%clk 0:00:08.4]} 49. Kg1 {[%clk 0:00:03.6]} 49... g4 {[%clk
0:00:08.8]} 50. Qc2 {[%clk 0:00:03.6]} 50... g3 {[%clk 0:00:09.1]} 51. Qd1
{[%clk 0:00:03.5]} 51... Qe3+ {[%clk 0:00:09.3]} 52. Kh1 {[%clk 0:00:04.2]}
52... Qh6+ {[%clk 0:00:09.8]} 53. Kg1 {[%clk 0:00:04.9]} 53... Qe3+ {[%clk
0:00:10.5]} 54. Kh1 {[%clk 0:00:05.4]} 54... Qf4 {[%clk 0:00:11]} 55. Qe2 {[%clk
0:00:04.2]} 55... Kh6 {[%clk 0:00:11.2]} 56. Qd1 {[%clk 0:00:04.2]} 56... Qe5
{[%clk 0:00:10.9]} 57. Bf3 {[%clk 0:00:04.3]} 57... Ne6 {[%clk 0:00:10.5]} 58.
Kg2 {[%clk 0:00:04.4]} 58... Qg5 {[%clk 0:00:10.3]} 59. Qh1+ {[%clk 0:00:03.9]}
59... Kg7 {[%clk 0:00:10.2]} 60. Qe1 {[%clk 0:00:04.2]} 60... Nf4+ {[%clk
0:00:11.1]} 61. Kg1 {[%clk 0:00:04.2]} 61... Qe5 {[%clk 0:00:11.7]} 62. Qxg3
{[%clk 0:00:04.2]} 62... Ne2+ {[%clk 0:00:11.7]} 0-1

[Event "Early-Titled-Tuesday-Blitz-September-05-2023"]
[Site "Chess.com"]
[Date "2023.09.05"]
[Round "8"]
[White "Tugrik1969"]
[Black "Rutricks"]
[Result "0-1"]
[WhiteElo "2504"]
[BlackElo "2655"]
[TimeControl "180+1"]
[EndTime "9:27:33 PDT"]
[Termination "Rutricks won by resignation"]

1. e4 {[%clk 0:03:00.9]} 1... g6 {[%clk 0:02:59.7]} 2. d4 {[%clk 0:03:01]} 2...
Bg7 {[%clk 0:02:59.9]} 3. Nc3 {[%clk 0:03:01.6]} 3... c6 {[%clk 0:03:00.3]} 4.
h4 {[%clk 0:03:01.5]} 4... d5 {[%clk 0:03:00.3]} 5. exd5 {[%clk 0:03:01]} 5...
cxd5 {[%clk 0:02:59.7]} 6. h5 {[%clk 0:03:01.9]} 6... Nc6 {[%clk 0:03:00.5]} 7.
Be3 {[%clk 0:02:55.2]} 7... Nh6 {[%clk 0:02:50.3]} 8. Bb5 {[%clk 0:02:48.6]}
8... Nf5 {[%clk 0:02:42.4]} 9. Bxc6+ {[%clk 0:02:40.7]} 9... bxc6 {[%clk
0:02:42.1]} 10. h6 {[%clk 0:02:41.2]} 10... Bf6 {[%clk 0:02:39.7]} 11. Nf3
{[%clk 0:02:37]} 11... Nxe3 {[%clk 0:01:45.1]} 12. fxe3 {[%clk 0:02:36.9]} 12...
Qd6 {[%clk 0:01:45.7]} 13. Qd2 {[%clk 0:02:18.7]} 13... Bf5 {[%clk 0:01:40.4]}
14. O-O-O {[%clk 0:02:16.1]} 14... O-O {[%clk 0:01:30.7]} 15. Rde1 {[%clk
0:02:15.4]} 15... e6 {[%clk 0:01:27.2]} 16. e4 {[%clk 0:02:14]} 16... dxe4
{[%clk 0:01:25.6]} 17. Nxe4 {[%clk 0:02:14.9]} 17... Bxe4 {[%clk 0:01:26.1]} 18.
Rxe4 {[%clk 0:02:15.4]} 18... c5 {[%clk 0:01:25.4]} 19. Qf4 {[%clk 0:02:02.8]}
19... Qxf4+ {[%clk 0:00:59.4]} 20. Rxf4 {[%clk 0:02:03.7]} 20... Bxd4 {[%clk
0:00:59.9]} 21. Nxd4 {[%clk 0:02:03.4]} 21... e5 {[%clk 0:01:00.3]} 22. Re4
{[%clk 0:01:18.5]} 22... exd4 {[%clk 0:01:00.1]} 23. Rhe1 {[%clk 0:01:18.2]}
23... f6 {[%clk 0:00:42.2]} 24. Re6 {[%clk 0:01:15.6]} 24... Rac8 {[%clk
0:00:36.7]} 25. Kd2 {[%clk 0:01:09.5]} 25... Rc7 {[%clk 0:00:33.2]} 26. b3
{[%clk 0:01:08.7]} 26... Kf7 {[%clk 0:00:32.4]} 27. Kd3 {[%clk 0:01:07]} 27...
g5 {[%clk 0:00:32]} 28. Kc4 {[%clk 0:00:51.6]} 28... Kg6 {[%clk 0:00:29.3]} 29.
Re7 {[%clk 0:00:52]} 29... Rfc8 {[%clk 0:00:17.4]} 30. Rxc7 {[%clk 0:00:42.4]}
30... Rxc7 {[%clk 0:00:18.3]} 31. Re6 {[%clk 0:00:42.6]} 31... Kxh6 {[%clk
0:00:10]} 32. Rxf6+ {[%clk 0:00:42.5]} 32... Kh5 {[%clk 0:00:10.7]} 33. Rf5
{[%clk 0:00:42.6]} 33... Kg4 {[%clk 0:00:11.2]} 34. Rxc5 {[%clk 0:00:39.7]}
34... Rg7 {[%clk 0:00:02.2]} 35. Kxd4 {[%clk 0:00:38.3]} 35... Kg3 {[%clk
0:00:02.9]} 36. c4 {[%clk 0:00:34.5]} 36... Kxg2 {[%clk 0:00:03.4]} 37. Re5
{[%clk 0:00:34.3]} 37... h5 {[%clk 0:00:03.6]} 38. c5 {[%clk 0:00:34.4]} 38...
h4 {[%clk 0:00:04.2]} 39. c6 {[%clk 0:00:32.8]} 39... h3 {[%clk 0:00:04.6]} 40.
c7 {[%clk 0:00:21.6]} 40... Rd7+ {[%clk 0:00:02.5]} 41. Rd5 {[%clk 0:00:19.2]}
41... Rxc7 {[%clk 0:00:02.5]} 42. Rxg5+ {[%clk 0:00:19.7]} 42... Kf3 {[%clk
0:00:03.2]} 43. Rh5 {[%clk 0:00:19.2]} 43... Kg4 {[%clk 0:00:03.9]} 44. Rh8
{[%clk 0:00:19.1]} 44... Rc2 {[%clk 0:00:03]} 45. a4 {[%clk 0:00:17.9]} 45... h2
{[%clk 0:00:03.1]} 46. b4 {[%clk 0:00:17.1]} 46... Rb2 {[%clk 0:00:02.6]} 47.
Kc5 {[%clk 0:00:16.9]} 47... Kg3 {[%clk 0:00:03]} 48. b5 {[%clk 0:00:11.3]}
48... Rc2+ {[%clk 0:00:03.1]} 49. Kb4 {[%clk 0:00:11.1]} 49... Re2 {[%clk
0:00:03.1]} 50. a5 {[%clk 0:00:10]} 50... Re4+ {[%clk 0:00:03.6]} 51. Kc5 {[%clk
0:00:09.5]} 51... Rh4 {[%clk 0:00:04.5]} 52. Rg8+ {[%clk 0:00:08.4]} 52... Kh3
{[%clk 0:00:05.2]} 53. b6 {[%clk 0:00:05.5]} 53... h1=Q {[%clk 0:00:05.4]} 54.
bxa7 {[%clk 0:00:05.3]} 54... Rh5+ {[%clk 0:00:05.1]} 55. Kb4 {[%clk 0:00:04.4]}
55... Qe4+ {[%clk 0:00:04.9]} 56. Kc3 {[%clk 0:00:03.5]} 56... Rc5+ {[%clk
0:00:04.7]} 57. Kd2 {[%clk 0:00:02.9]} 57... Rd5+ {[%clk 0:00:04.7]} 0-1